[Event "Venerd-dì-rapid!"]
[Site "Chess.com"]
[Date "2020.04.17"]
[Round "5"]
[White "markk000"]
[Black "donaldnecesito"]
[Result "0-1"]
[WhiteElo "1568"]
[BlackElo "1734"]
[TimeControl "720+3"]
[EndTime "7:59:49 PDT"]
[Termination "donaldnecesito ha vinto per scaccomatto"]

1. d4 {[%clk 0:11:55]} 1... d5 {[%clk 0:11:58.8]} 2. c4 {[%clk 0:11:51.5]} 2...
e6 {[%clk 0:12:00.2]} 3. Nc3 {[%clk 0:11:52.6]} 3... Nf6 {[%clk 0:12:01.7]} 4.
Nf3 {[%clk 0:11:54.5]} 4... Bb4 {[%clk 0:12:02.8]} 5. Bg5 {[%clk 0:11:54.7]}
5... h6 {[%clk 0:12:00.7]} 6. Bh4 {[%clk 0:11:56.3]} 6... c6 {[%clk 0:11:57.3]}
7. e3 {[%clk 0:11:57.5]} 7... Qa5 {[%clk 0:11:58]} 8. Qc2 {[%clk 0:11:28]} 8...
Ne4 {[%clk 0:11:54]} 9. Rc1 {[%clk 0:11:27]} 9... O-O {[%clk 0:11:37.7]} 10. a3
{[%clk 0:11:28.7]} 10... Bxc3+ {[%clk 0:11:37.7]} 11. bxc3 {[%clk 0:11:31]}
11... Qxa3 {[%clk 0:10:54.4]} 12. cxd5 {[%clk 0:11:31.1]} 12... exd5 {[%clk
0:10:47.2]} 13. Bd3 {[%clk 0:11:32.9]} 13... f5 {[%clk 0:10:42.4]} 14. O-O
{[%clk 0:11:31.6]} 14... Nd7 {[%clk 0:10:32.4]} 15. c4 {[%clk 0:10:38.9]} 15...
Ndf6 {[%clk 0:10:13.3]} 16. Ne5 {[%clk 0:10:11.9]} 16... Be6 {[%clk 0:10:02]}
17. c5 {[%clk 0:09:56.6]} 17... Qa5 {[%clk 0:09:48.1]} 18. Rfd1 {[%clk 0:09:45]}
18... g5 {[%clk 0:09:19]} 19. Bg3 {[%clk 0:09:39.5]} 19... Nh5 {[%clk
0:08:34.9]} 20. Bxe4 {[%clk 0:09:00.5]} 20... fxe4 {[%clk 0:08:23.5]} 21. Rb1
{[%clk 0:08:58.5]} 21... Nxg3 {[%clk 0:08:04.1]} 22. hxg3 {[%clk 0:09:01.4]}
22... Qc7 {[%clk 0:07:57.7]} 23. Qb2 {[%clk 0:08:57.3]} 23... Rab8 {[%clk
0:07:48.2]} 24. Rdc1 {[%clk 0:08:52]} 24... h5 {[%clk 0:07:33.6]} 25. Qa3 {[%clk
0:08:50.9]} 25... a6 {[%clk 0:07:21.8]} 26. Rc2 {[%clk 0:08:36.9]} 26... h4
{[%clk 0:07:22.3]} 27. gxh4 {[%clk 0:08:35.2]} 27... gxh4 {[%clk 0:07:23.8]} 28.
Rcb2 {[%clk 0:08:35.7]} 28... h3 {[%clk 0:07:10.8]} 29. f3 {[%clk 0:07:49.2]}
29... Qg7 {[%clk 0:07:02.9]} 30. f4 {[%clk 0:07:46.2]} 30... Kh7 {[%clk
0:06:16.5]} 31. Nxc6 {[%clk 0:07:17.6]} 31... bxc6 {[%clk 0:06:16]} 32. Rxb8
{[%clk 0:07:20.5]} 32... Qxg2# {[%clk 0:06:16.7]} 0-1

[Event "Venerd-dì-rapid!"]
[Site "Chess.com"]
[Date "2020.04.17"]
[Round "5"]
[White "Ollarov"]
[Black "BAKR1980"]
[Result "1-0"]
[WhiteElo "2008"]
[BlackElo "1567"]
[TimeControl "720+3"]
[EndTime "8:01:38 PDT"]
[Termination "Ollarov ha vinto per abbandono"]

1. e4 {[%clk 0:11:59.4]} 1... e5 {[%clk 0:12:00.4]} 2. Nf3 {[%clk 0:12:01.1]}
2... Nc6 {[%clk 0:12:01.3]} 3. Bb5 {[%clk 0:12:03.5]} 3... a6 {[%clk 0:12:01.6]}
4. Bxc6 {[%clk 0:12:05.5]} 4... dxc6 {[%clk 0:12:03]} 5. O-O {[%clk 0:12:07.6]}
5... f6 {[%clk 0:11:58]} 6. d4 {[%clk 0:12:03.3]} 6... Bg4 {[%clk 0:11:48.9]} 7.
c3 {[%clk 0:11:32.9]} 7... Bd6 {[%clk 0:11:36.9]} 8. h3 {[%clk 0:10:41.7]} 8...
Bh5 {[%clk 0:11:23.4]} 9. Be3 {[%clk 0:10:28.6]} 9... Qe7 {[%clk 0:11:22.2]} 10.
Nbd2 {[%clk 0:09:57.7]} 10... O-O-O {[%clk 0:11:10.2]} 11. Qb3 {[%clk 0:09:51]}
11... exd4 {[%clk 0:10:57.3]} 12. Nxd4 {[%clk 0:09:50.3]} 12... Qe5 {[%clk
0:10:37.6]} 13. f4 {[%clk 0:09:48.2]} 13... Qe7 {[%clk 0:10:23.4]} 14. Nf5
{[%clk 0:09:43.8]} 14... Qd7 {[%clk 0:10:03.9]} 15. Nc4 {[%clk 0:08:40.1]} 15...
Bf7 {[%clk 0:09:27.9]} 16. Nfxd6+ {[%clk 0:08:37.5]} 16... cxd6 {[%clk
0:09:22.3]} 17. Nb6+ {[%clk 0:08:34.1]} 17... Kc7 {[%clk 0:09:23]} 18. c4 {[%clk
0:08:29.8]} 18... Qe6 {[%clk 0:09:00.5]} 19. e5 {[%clk 0:08:31.3]} 19... fxe5
{[%clk 0:08:25.4]} 20. f5 {[%clk 0:08:22.7]} 20... Qe7 {[%clk 0:08:13.7]} 21.
Rad1 {[%clk 0:07:26.7]} 21... Nf6 {[%clk 0:08:11.9]} 22. Rd3 {[%clk 0:05:52.7]}
22... g6 {[%clk 0:07:39.5]} 23. fxg6 {[%clk 0:04:29.8]} 23... Bxg6 {[%clk
0:07:39.7]} 24. Bg5 {[%clk 0:04:28.6]} 24... Bxd3 {[%clk 0:07:08.4]} 25. Bxf6
{[%clk 0:04:26.5]} 25... Qf7 {[%clk 0:07:08.6]} 26. Bxd8+ {[%clk 0:04:24.6]}
26... Rxd8 {[%clk 0:07:06.1]} 27. Rxf7+ {[%clk 0:04:20.6]} 1-0

[Event "Venerd-dì-rapid!"]
[Site "Chess.com"]
[Date "2020.04.17"]
[Round "5"]
[White "MarcoCiva"]
[Black "sirmale49"]
[Result "0-1"]
[WhiteElo "1511"]
[BlackElo "1387"]
[TimeControl "720+3"]
[EndTime "8:02:00 PDT"]
[Termination "sirmale49 ha vinto per abbandono"]

1. d4 {[%clk 0:12:00.9]} 1... d5 {[%clk 0:12:00.8]} 2. c4 {[%clk 0:12:01.8]}
2... e5 {[%clk 0:12:02.6]} 3. e3 {[%clk 0:11:59.3]} 3... Bb4+ {[%clk 0:11:50]}
4. Bd2 {[%clk 0:11:48.9]} 4... Bxd2+ {[%clk 0:11:31.7]} 5. Qxd2 {[%clk
0:11:36.1]} 5... exd4 {[%clk 0:11:32.8]} 6. Qxd4 {[%clk 0:11:21]} 6... Nc6
{[%clk 0:11:23.7]} 7. Qxd5 {[%clk 0:11:21.6]} 7... Qxd5 {[%clk 0:11:22.9]} 8.
cxd5 {[%clk 0:11:23.2]} 8... Nce7 {[%clk 0:11:22.6]} 9. Nc3 {[%clk 0:11:22.2]}
9... Bd7 {[%clk 0:11:22.2]} 10. O-O-O {[%clk 0:11:09.4]} 10... O-O-O {[%clk
0:11:22.4]} 11. Nf3 {[%clk 0:11:02.4]} 11... Bg4 {[%clk 0:11:18.5]} 12. h3
{[%clk 0:10:34.4]} 12... Bxf3 {[%clk 0:11:18.6]} 13. gxf3 {[%clk 0:10:36.1]}
13... Nf6 {[%clk 0:11:20.5]} 14. e4 {[%clk 0:10:37.7]} 14... h6 {[%clk
0:11:02.2]} 15. Rg1 {[%clk 0:10:36.4]} 15... g5 {[%clk 0:11:02.9]} 16. Kb1
{[%clk 0:10:34.9]} 16... Nh5 {[%clk 0:11:01.6]} 17. Rc1 {[%clk 0:10:34.5]} 17...
Nf4 {[%clk 0:11:01.9]} 18. Nb5 {[%clk 0:10:29.4]} 18... c5 {[%clk 0:10:36.3]}
19. Rxc5+ {[%clk 0:10:16.9]} 19... Kb8 {[%clk 0:10:30]} 20. Rc7 {[%clk
0:10:12.2]} 20... Rhe8 {[%clk 0:09:58.4]} 21. Bc4 {[%clk 0:09:27.8]} 21... a6
{[%clk 0:09:59.4]} 22. Nd4 {[%clk 0:09:11.5]} 22... Kxc7 {[%clk 0:09:54.2]} 23.
Rc1 {[%clk 0:09:02.4]} 23... Kd6 {[%clk 0:09:31.2]} 24. Nc2 {[%clk 0:08:07.8]}
24... Nxh3 {[%clk 0:09:25.8]} 25. Ne3 {[%clk 0:08:02.3]} 25... Nxf2 {[%clk
0:09:19.7]} 26. Ng4 {[%clk 0:08:03.2]} 26... Nxg4 {[%clk 0:09:11.6]} 27. fxg4
{[%clk 0:08:05]} 27... Rc8 {[%clk 0:09:07.8]} 28. b3 {[%clk 0:08:05.8]} 28...
Ke5 {[%clk 0:09:08.7]} 29. Rd1 {[%clk 0:07:53.5]} 29... Kxe4 {[%clk 0:08:45.3]}
30. d6 {[%clk 0:07:54.6]} 30... Red8 {[%clk 0:08:16.1]} 31. d7 {[%clk
0:07:49.5]} 31... Rc7 {[%clk 0:08:03.5]} 32. Re1+ {[%clk 0:07:42.7]} 32... Kf4
{[%clk 0:07:58.1]} 33. Rxe7 {[%clk 0:07:44.4]} 33... Rdxd7 {[%clk 0:07:59.9]}
34. Re8 {[%clk 0:07:21.1]} 34... Kxg4 {[%clk 0:07:47.6]} 35. Rh8 {[%clk
0:07:22.2]} 35... Rd6 {[%clk 0:07:34]} 36. Rh7 {[%clk 0:07:17.3]} 36... Rf6
{[%clk 0:07:25]} 37. Kb2 {[%clk 0:07:13.8]} 37... b5 {[%clk 0:07:19.1]} 38. Bd3
{[%clk 0:06:52.9]} 38... b4 {[%clk 0:07:16.9]} 39. a4 {[%clk 0:06:53.6]} 39...
Rf2+ {[%clk 0:07:13.2]} 40. Kb1 {[%clk 0:06:49.7]} 40... Re7 {[%clk 0:07:14.3]}
41. Bf5+ {[%clk 0:06:31]} 41... Rxf5 {[%clk 0:07:12.7]} 42. Rxh6 {[%clk
0:06:29]} 42... Rf2 {[%clk 0:07:11]} 43. Rc6 {[%clk 0:06:26.8]} 43... Re1+
{[%clk 0:07:11.7]} 44. Rc1 {[%clk 0:06:28.4]} 44... Rxc1+ {[%clk 0:07:13.3]} 45.
Kxc1 {[%clk 0:06:30.4]} 45... Kf4 {[%clk 0:07:14.3]} 46. Kd1 {[%clk 0:06:31.9]}
46... Ke3 {[%clk 0:07:15.5]} 47. a5 {[%clk 0:06:32.8]} 47... Kd3 {[%clk
0:07:15.3]} 48. Ke1 {[%clk 0:06:26.9]} 48... Ra2 {[%clk 0:07:15.7]} 49. Kf1
{[%clk 0:06:26]} 49... Ke3 {[%clk 0:07:17.1]} 0-1

[Event "Venerd-dì-rapid!"]
[Site "Chess.com"]
[Date "2020.04.17"]
[Round "5"]
[White "giulioscaglione"]
[Black "sergiodone"]
[Result "1-0"]
[WhiteElo "1291"]
[BlackElo "1291"]
[TimeControl "720+3"]
[EndTime "8:06:29 PDT"]
[Termination "giulioscaglione ha vinto per abbandono"]

1. b3 {[%clk 0:11:53.6]} 1... e5 {[%clk 0:11:58.1]} 2. Bb2 {[%clk 0:11:55]} 2...
Nc6 {[%clk 0:11:57.6]} 3. e3 {[%clk 0:11:56.6]} 3... d6 {[%clk 0:11:56.2]} 4.
Bb5 {[%clk 0:11:57.8]} 4... Bd7 {[%clk 0:11:57.1]} 5. Ne2 {[%clk 0:11:58.8]}
5... f5 {[%clk 0:11:58.6]} 6. Ng3 {[%clk 0:11:57.6]} 6... Nf6 {[%clk 0:11:55.4]}
7. d3 {[%clk 0:11:51.7]} 7... g6 {[%clk 0:11:56.2]} 8. Nd2 {[%clk 0:11:51.7]}
8... Bg7 {[%clk 0:11:57.8]} 9. O-O {[%clk 0:11:49.6]} 9... Kf8 {[%clk
0:11:59.2]} 10. e4 {[%clk 0:11:41.6]} 10... f4 {[%clk 0:11:51.8]} 11. Ne2 {[%clk
0:11:33]} 11... Ne7 {[%clk 0:11:51.1]} 12. Bxd7 {[%clk 0:11:33.8]} 12... Qxd7
{[%clk 0:11:52.6]} 13. Nf3 {[%clk 0:11:34.3]} 13... h6 {[%clk 0:11:50.3]} 14. d4
{[%clk 0:11:34.5]} 14... Nxe4 {[%clk 0:11:26.7]} 15. dxe5 {[%clk 0:11:24.1]}
15... d5 {[%clk 0:10:44.6]} 16. e6 {[%clk 0:11:14.4]} 16... Qxe6 {[%clk
0:10:45.1]} 17. Bxg7+ {[%clk 0:11:16.3]} 17... Kxg7 {[%clk 0:10:46.1]} 18. Nxf4
{[%clk 0:11:10.6]} 18... Qc6 {[%clk 0:10:44]} 19. Qd4+ {[%clk 0:11:08.7]} 19...
Kh7 {[%clk 0:10:41]} 20. Ne5 {[%clk 0:07:42.8]} 20... Qc3 {[%clk 0:10:04.5]} 21.
Qxc3 {[%clk 0:06:55.9]} 21... Nxc3 {[%clk 0:10:04.3]} 22. Rfe1 {[%clk
0:06:11.4]} 22... Rae8 {[%clk 0:09:53.2]} 23. Ng4 {[%clk 0:05:58.4]} 23... Nf5
{[%clk 0:09:37.3]} 24. Nf6+ {[%clk 0:05:55.4]} 24... Kg7 {[%clk 0:09:24.6]} 25.
Nxe8+ {[%clk 0:05:53.8]} 25... Kf7 {[%clk 0:08:24.6]} 26. Nxc7 {[%clk
0:05:46.8]} 26... Rb8 {[%clk 0:07:59.2]} 27. Ncxd5 {[%clk 0:05:41.3]} 27... Nxd5
{[%clk 0:07:46.6]} 28. Nxd5 {[%clk 0:05:42.7]} 28... Rc8 {[%clk 0:07:46]} 29. c4
{[%clk 0:05:40.9]} 29... b6 {[%clk 0:07:45]} 30. Rad1 {[%clk 0:04:33.5]} 30...
h5 {[%clk 0:07:44]} 31. Nf4 {[%clk 0:04:29.3]} 31... Rc7 {[%clk 0:07:41.6]} 32.
Ne6 {[%clk 0:04:20.6]} 32... Rc8 {[%clk 0:06:59.4]} 33. Ng5+ {[%clk 0:04:20.2]}
33... Kf6 {[%clk 0:06:53.4]} 34. Ne4+ {[%clk 0:04:21.4]} 34... Kg7 {[%clk
0:06:50.2]} 35. Nd6 {[%clk 0:04:22]} 35... Nxd6 {[%clk 0:06:48.3]} 36. Rxd6
{[%clk 0:04:23.3]} 36... Rc7 {[%clk 0:06:38.3]} 37. Red1 {[%clk 0:04:22]} 37...
Kh6 {[%clk 0:06:36.5]} 38. Rd7 {[%clk 0:04:23.3]} 38... Rc6 {[%clk 0:06:31.3]}
39. Rxa7 {[%clk 0:04:22.9]} 39... h4 {[%clk 0:06:28.6]} 40. h3 {[%clk
0:04:22.7]} 40... Re6 {[%clk 0:06:25.6]} 41. Kf1 {[%clk 0:04:11]} 41... Rf6
{[%clk 0:06:06]} 42. Rad7 {[%clk 0:04:11.6]} 42... b5 {[%clk 0:05:53]} 43. cxb5
{[%clk 0:04:11.2]} 43... Rb6 {[%clk 0:05:52.2]} 44. a4 {[%clk 0:04:09.7]} 44...
Kg5 {[%clk 0:05:41.6]} 45. R7d6 {[%clk 0:04:09.1]} 45... Rb7 {[%clk 0:05:39.9]}
46. R1d5+ {[%clk 0:04:10.1]} 46... Kh6 {[%clk 0:05:39.8]} 47. a5 {[%clk
0:03:59]} 47... Rc7 {[%clk 0:05:21.1]} 48. b6 {[%clk 0:03:56]} 48... Rc1+ {[%clk
0:05:22]} 49. Rd1 {[%clk 0:03:57.2]} 49... Rc3 {[%clk 0:05:20.5]} 50. b7 {[%clk
0:03:56]} 50... Rxb3 {[%clk 0:05:21.6]} 51. Rb6 {[%clk 0:03:57.3]} 1-0

[Event "Venerd-dì-rapid!"]
[Site "Chess.com"]
[Date "2020.04.17"]
[Round "5"]
[White "bellapero"]
[Black "karab89"]
[Result "1-0"]
[WhiteElo "1400"]
[BlackElo "1245"]
[TimeControl "720+3"]
[EndTime "8:08:55 PDT"]
[Termination "bellapero ha vinto per scaccomatto"]

1. e4 {[%clk 0:12:02.9]} 1... e6 {[%clk 0:11:53.8]} 2. Nf3 {[%clk 0:12:01.2]}
2... d5 {[%clk 0:11:53.4]} 3. exd5 {[%clk 0:11:56.2]} 3... exd5 {[%clk
0:11:54.6]} 4. d4 {[%clk 0:11:56.1]} 4... Nf6 {[%clk 0:11:57.5]} 5. Nc3 {[%clk
0:11:54.7]} 5... Ng8 {[%clk 0:12:00.4]} 6. Be2 {[%clk 0:11:24.5]} 6... Nf6
{[%clk 0:12:03.3]} 7. O-O {[%clk 0:11:14.2]} 7... Bd6 {[%clk 0:12:06.2]} 8. Nb5
{[%clk 0:09:54.3]} 8... O-O {[%clk 0:12:09.1]} 9. Nxd6 {[%clk 0:09:50.3]} 9...
Bg4 {[%clk 0:12:12]} 10. h3 {[%clk 0:09:04.3]} 10... Bxf3 {[%clk 0:11:50.3]} 11.
Bxf3 {[%clk 0:09:04.3]} 11... Qxd6 {[%clk 0:11:50.9]} 12. Be3 {[%clk 0:08:22.7]}
12... Nbd7 {[%clk 0:11:51.1]} 13. Re1 {[%clk 0:07:56.5]} 13... Rfe8 {[%clk
0:11:50.2]} 14. Qd3 {[%clk 0:07:12.3]} 14... c5 {[%clk 0:10:54.7]} 15. c4 {[%clk
0:06:18.3]} 15... Rac8 {[%clk 0:09:19.6]} 16. cxd5 {[%clk 0:05:35.9]} 16... Nxd5
{[%clk 0:08:58.8]} 17. dxc5 {[%clk 0:04:48.7]} 17... Nxc5 {[%clk 0:07:08.4]} 18.
Bxc5 {[%clk 0:04:22.6]} 18... Qxc5 {[%clk 0:06:08.3]} 19. Bxd5 {[%clk
0:04:13.4]} 19... Red8 {[%clk 0:06:01.6]} 20. Re5 {[%clk 0:03:55.9]} 20... Qd6
{[%clk 0:05:15.2]} 21. Re8+ {[%clk 0:03:27.6]} 21... Rxe8 {[%clk 0:05:12.1]} 22.
Bxf7+ {[%clk 0:03:28.3]} 22... Kxf7 {[%clk 0:05:13.1]} 23. Qxd6 {[%clk
0:03:29.6]} 23... Re7 {[%clk 0:05:00.2]} 24. Qd5+ {[%clk 0:03:22.4]} 24... Kg6
{[%clk 0:04:31.6]} 25. Qd6+ {[%clk 0:03:07.7]} 25... Kf7 {[%clk 0:04:30.5]} 26.
Qd5+ {[%clk 0:02:44.2]} 26... Kg6 {[%clk 0:04:19]} 27. g4 {[%clk 0:02:32.9]}
27... h5 {[%clk 0:02:00.4]} 28. Qf5+ {[%clk 0:02:14.5]} 28... Kh6 {[%clk
0:01:56.6]} 29. Qxh5# {[%clk 0:02:15.1]} 1-0

[Event "Venerd-dì-rapid!"]
[Site "Chess.com"]
[Date "2020.04.17"]
[Round "6"]
[White "MarcoCiva"]
[Black "Ollarov"]
[Result "0-1"]
[WhiteElo "1505"]
[BlackElo "2015"]
[TimeControl "720+3"]
[EndTime "8:19:33 PDT"]
[Termination "Ollarov ha vinto per abbandono"]

1. d4 {[%clk 0:11:57]} 1... Nf6 {[%clk 0:11:56.4]} 2. c4 {[%clk 0:11:56.9]} 2...
g6 {[%clk 0:11:58.2]} 3. Nc3 {[%clk 0:11:57.7]} 3... Bg7 {[%clk 0:12:00.2]} 4.
Bf4 {[%clk 0:11:54.2]} 4... O-O {[%clk 0:12:01.6]} 5. e3 {[%clk 0:11:54.7]} 5...
d6 {[%clk 0:11:59.5]} 6. Nf3 {[%clk 0:11:56]} 6... Nh5 {[%clk 0:11:50.3]} 7. Bg5
{[%clk 0:11:04.6]} 7... Nf6 {[%clk 0:11:48.4]} 8. Be2 {[%clk 0:11:02.6]} 8... c5
{[%clk 0:11:50.1]} 9. dxc5 {[%clk 0:10:44]} 9... Nc6 {[%clk 0:11:31.9]} 10. cxd6
{[%clk 0:10:32.3]} 10... exd6 {[%clk 0:11:31.6]} 11. O-O {[%clk 0:10:31.4]}
11... Be6 {[%clk 0:11:32.8]} 12. e4 {[%clk 0:09:49.8]} 12... Qc7 {[%clk
0:11:16]} 13. Bf4 {[%clk 0:09:25.1]} 13... Ne5 {[%clk 0:11:15.1]} 14. Nb5 {[%clk
0:08:48.3]} 14... Nxf3+ {[%clk 0:11:08.1]} 15. Bxf3 {[%clk 0:08:41.8]} 15...
Qxc4 {[%clk 0:11:08.1]} 16. Nxd6 {[%clk 0:08:32.5]} 16... Qb4 {[%clk 0:11:08.3]}
17. Rb1 {[%clk 0:08:16.9]} 17... Bxa2 {[%clk 0:11:05.2]} 18. Qd2 {[%clk
0:07:26.6]} 18... Qxd2 {[%clk 0:11:02.9]} 19. Bxd2 {[%clk 0:07:26.8]} 19... Bxb1
{[%clk 0:11:04.7]} 20. Rxb1 {[%clk 0:07:29]} 20... Rfd8 {[%clk 0:10:58.5]} 21.
Bf4 {[%clk 0:07:20.5]} 21... Nh5 {[%clk 0:10:45.1]} 22. Nxb7 {[%clk 0:07:06.1]}
22... Nxf4 {[%clk 0:10:34.6]} 23. Nxd8 {[%clk 0:07:07.2]} 23... Rxd8 {[%clk
0:10:36.6]} 24. Ra1 {[%clk 0:07:01.4]} 24... Bxb2 {[%clk 0:10:37.2]} 25. Rxa7
{[%clk 0:07:01.9]} 25... Ne6 {[%clk 0:10:34.9]} 26. h3 {[%clk 0:06:48]} 26...
Rd2 {[%clk 0:10:34.9]} 27. Ra2 {[%clk 0:06:46.2]} 27... Bc3 {[%clk 0:10:36.3]}
28. Ra8+ {[%clk 0:06:45.3]} 28... Kg7 {[%clk 0:10:37.5]} 29. g4 {[%clk
0:06:39.6]} 29... Bd4 {[%clk 0:10:39]} 30. Ra1 {[%clk 0:06:20.3]} 0-1

[Event "Venerd-dì-rapid!"]
[Site "Chess.com"]
[Date "2020.04.17"]
[Round "6"]
[White "FrancescoZasa"]
[Black "giulioscaglione"]
[Result "0-1"]
[WhiteElo "752"]
[BlackElo "1297"]
[TimeControl "720+3"]
[EndTime "8:28:53 PDT"]
[Termination "giulioscaglione ha vinto per scaccomatto"]

1. d4 {[%clk 0:12:02.9]} 1... e6 {[%clk 0:12:01.4]} 2. Nf3 {[%clk 0:12:01]} 2...
b6 {[%clk 0:12:02.9]} 3. Nc3 {[%clk 0:12:01.7]} 3... Bb4 {[%clk 0:12:02.5]} 4.
a3 {[%clk 0:11:59.4]} 4... Bxc3+ {[%clk 0:12:03.1]} 5. bxc3 {[%clk 0:12:00]}
5... Bb7 {[%clk 0:12:05.2]} 6. h4 {[%clk 0:11:48.9]} 6... Ne7 {[%clk 0:12:06.3]}
7. e4 {[%clk 0:11:43.5]} 7... Bxe4 {[%clk 0:12:04.4]} 8. Ne5 {[%clk 0:11:22.7]}
8... d6 {[%clk 0:11:30.1]} 9. f3 {[%clk 0:11:01.5]} 9... Bb7 {[%clk 0:11:09]}
10. Ng4 {[%clk 0:10:42]} 10... h5 {[%clk 0:10:25]} 11. Nf2 {[%clk 0:10:27]}
11... Nd5 {[%clk 0:10:18.5]} 12. Bd3 {[%clk 0:09:46.3]} 12... Nxc3 {[%clk
0:10:08.8]} 13. Qd2 {[%clk 0:09:25.4]} 13... Nd5 {[%clk 0:10:01.4]} 14. O-O
{[%clk 0:09:21.8]} 14... Ne7 {[%clk 0:09:01.1]} 15. Ne4 {[%clk 0:09:10.3]} 15...
Nd7 {[%clk 0:08:57.4]} 16. g4 {[%clk 0:09:05.3]} 16... hxg4 {[%clk 0:08:44.5]}
17. fxg4 {[%clk 0:09:05.2]} 17... Rxh4 {[%clk 0:08:04.8]} 18. Qe1 {[%clk
0:08:42.2]} 18... Rxg4+ {[%clk 0:07:20.2]} 19. Kh1 {[%clk 0:08:28.8]} 19... Ng6
{[%clk 0:07:05]} 20. Rg1 {[%clk 0:08:29.1]} 20... Qh4+ {[%clk 0:07:03.1]} 21.
Qxh4 {[%clk 0:08:28.7]} 21... Rxh4+ {[%clk 0:07:04.3]} 22. Kg2 {[%clk 0:08:28]}
22... f5 {[%clk 0:07:01.4]} 23. Kf1 {[%clk 0:07:47.5]} 23... fxe4 {[%clk
0:06:36.9]} 24. Rxg6 {[%clk 0:07:31.7]} 24... exd3 {[%clk 0:06:29.4]} 25. Rxg7
{[%clk 0:07:30.2]} 25... O-O-O {[%clk 0:06:24.5]} 26. cxd3 {[%clk 0:07:30]}
26... Rf8+ {[%clk 0:06:23.9]} 27. Rf7 {[%clk 0:06:54.9]} 27... Rxf7+ {[%clk
0:06:24.4]} 28. Ke2 {[%clk 0:06:48.2]} 28... Rh2+ {[%clk 0:05:46.8]} 29. Ke3
{[%clk 0:06:40.5]} 29... Rh3+ {[%clk 0:05:40.4]} 30. Kd2 {[%clk 0:06:19.4]}
30... Rh1 {[%clk 0:05:32.9]} 31. Kc2 {[%clk 0:06:13.6]} 31... Rff1 {[%clk
0:05:29.1]} 32. a4 {[%clk 0:06:01.6]} 32... Ba6 {[%clk 0:05:29.9]} 33. d5 {[%clk
0:05:26.6]} 33... exd5 {[%clk 0:05:24.4]} 34. d4 {[%clk 0:05:24.6]} 34... Bd3+
{[%clk 0:05:08.8]} 35. Kxd3 {[%clk 0:05:12.4]} 35... Rxc1 {[%clk 0:05:10.6]} 36.
Rxc1 {[%clk 0:05:12.2]} 36... Rxc1 {[%clk 0:05:11.8]} 37. Kd2 {[%clk 0:05:13.3]}
37... Rc4 {[%clk 0:05:12.6]} 38. Kd3 {[%clk 0:05:07.9]} 38... Rxa4 {[%clk
0:05:13.8]} 39. Ke3 {[%clk 0:05:06.2]} 39... c5 {[%clk 0:05:14.9]} 40. Kf4
{[%clk 0:05:05.6]} 40... c4 {[%clk 0:05:16.2]} 41. Ke3 {[%clk 0:05:05.3]} 41...
Ra3+ {[%clk 0:05:17.8]} 42. Kd2 {[%clk 0:04:59.6]} 42... Nf6 {[%clk 0:05:16.8]}
43. Kc2 {[%clk 0:04:59]} 43... Rb3 {[%clk 0:05:18.2]} 44. Kd2 {[%clk 0:04:52]}
44... a5 {[%clk 0:05:20.3]} 45. Kc2 {[%clk 0:04:51]} 45... a4 {[%clk 0:05:22.2]}
46. Kd2 {[%clk 0:04:48.9]} 46... a3 {[%clk 0:05:24]} 47. Kc2 {[%clk 0:04:50.7]}
47... a2 {[%clk 0:05:25.6]} 48. Kd2 {[%clk 0:04:49.5]} 48... a1=Q {[%clk
0:05:19.6]} 49. Ke2 {[%clk 0:04:46]} 49... Qa2+ {[%clk 0:05:20.6]} 50. Kd1
{[%clk 0:04:40.6]} 50... Rb1# {[%clk 0:05:22.7]} 0-1

[Event "Venerd-dì-rapid!"]
[Site "Chess.com"]
[Date "2020.04.17"]
[Round "6"]
[White "sirmale49"]
[Black "bellapero"]
[Result "0-1"]
[WhiteElo "1374"]
[BlackElo "1495"]
[TimeControl "720+3"]
[EndTime "8:30:26 PDT"]
[Termination "bellapero ha vinto per abbandono"]

1. e4 {[%clk 0:12:00.1]} 1... c5 {[%clk 0:11:56.3]} 2. f4 {[%clk 0:12:00.1]}
2... d6 {[%clk 0:11:56.4]} 3. Nf3 {[%clk 0:12:00.6]} 3... Nc6 {[%clk 0:11:57.4]}
4. Bb5 {[%clk 0:11:55.9]} 4... Bd7 {[%clk 0:11:57.3]} 5. O-O {[%clk 0:11:56.1]}
5... Nf6 {[%clk 0:11:55.5]} 6. d3 {[%clk 0:11:51.5]} 6... g6 {[%clk 0:11:54.5]}
7. Nc3 {[%clk 0:11:49.7]} 7... Bg7 {[%clk 0:11:53.6]} 8. Rb1 {[%clk 0:11:37.4]}
8... O-O {[%clk 0:11:53.9]} 9. a3 {[%clk 0:11:14.1]} 9... a6 {[%clk 0:11:29.5]}
10. Bc4 {[%clk 0:11:08.2]} 10... Nd4 {[%clk 0:11:08.9]} 11. Nxd4 {[%clk
0:11:00]} 11... cxd4 {[%clk 0:11:09.5]} 12. Nd5 {[%clk 0:10:46]} 12... e6 {[%clk
0:10:40.4]} 13. Nxf6+ {[%clk 0:10:30.6]} 13... Bxf6 {[%clk 0:10:35]} 14. Qf3
{[%clk 0:10:17.8]} 14... Bc6 {[%clk 0:09:57.9]} 15. Bd2 {[%clk 0:10:02.6]} 15...
d5 {[%clk 0:09:31.3]} 16. Bb3 {[%clk 0:09:30.3]} 16... dxe4 {[%clk 0:09:12.4]}
17. dxe4 {[%clk 0:09:31.3]} 17... Bb5 {[%clk 0:08:58.8]} 18. Rfe1 {[%clk
0:09:24.6]} 18... Bg7 {[%clk 0:07:59.7]} 19. a4 {[%clk 0:09:11.5]} 19... Bc6
{[%clk 0:07:48.6]} 20. Rbd1 {[%clk 0:08:36.3]} 20... Re8 {[%clk 0:07:34.5]} 21.
c3 {[%clk 0:08:28]} 21... dxc3 {[%clk 0:06:49]} 22. Bxc3 {[%clk 0:08:16.6]}
22... Qb6+ {[%clk 0:06:45.9]} 23. Bd4 {[%clk 0:08:03.3]} 23... Bxd4+ {[%clk
0:06:25.5]} 24. Rxd4 {[%clk 0:07:24.3]} 24... Qxd4+ {[%clk 0:06:22.2]} 25. Kh1
{[%clk 0:07:22.3]} 25... Qxb2 {[%clk 0:06:00]} 26. Qe3 {[%clk 0:06:58.9]} 26...
Rad8 {[%clk 0:05:31.7]} 27. Rd1 {[%clk 0:06:30.1]} 27... Rxd1+ {[%clk
0:05:17.7]} 28. Bxd1 {[%clk 0:06:31]} 28... Bxa4 {[%clk 0:03:44.9]} 29. Qe1
{[%clk 0:06:12.8]} 29... Bxd1 {[%clk 0:02:50.8]} 30. Qxd1 {[%clk 0:06:13.5]}
30... Qb6 {[%clk 0:02:45]} 31. h4 {[%clk 0:06:12]} 31... Rd8 {[%clk 0:02:45.5]}
32. Qf3 {[%clk 0:06:00.1]} 32... Qb1+ {[%clk 0:02:37.1]} 33. Kh2 {[%clk
0:05:59.2]} 33... Rd1 {[%clk 0:02:30]} 34. Qc3 {[%clk 0:05:09.6]} 34... Rh1+
{[%clk 0:02:14.9]} 35. Kg3 {[%clk 0:05:03.4]} 35... Qe1+ {[%clk 0:01:56.2]} 0-1